[Event "*** Titled Tuesday Blitz"]
[Site "Chess.com"]
[Date "2020.11.03"]
[Round "10"]
[White "Nikolaj_6"]
[Black "Evgeny81"]
[Result "1-0"]
[WhiteElo "2563"]
[BlackElo "2709"]
[TimeControl "180+1"]
[EndTime "11:59:57 PST"]
[Termination "Nikolaj_6 won by resignation"]

1. e4 {[%clk 0:03:00.9]} 1... c5 {[%clk 0:02:58.9]} 2. Nf3 {[%clk 0:03:00.5]}
2... d6 {[%clk 0:02:58.9]} 3. d4 {[%clk 0:03:00.5]} 3... cxd4 {[%clk 0:02:59]}
4. Nxd4 {[%clk 0:03:01]} 4... Nf6 {[%clk 0:02:59]} 5. Nc3 {[%clk 0:03:01]} 5...
Nc6 {[%clk 0:02:58.4]} 6. Bg5 {[%clk 0:03:00]} 6... Bd7 {[%clk 0:02:57.7]} 7.
Qd2 {[%clk 0:02:58.7]} 7... Nxd4 {[%clk 0:02:54.4]} 8. Qxd4 {[%clk 0:02:58.2]}
8... Qa5 {[%clk 0:02:55]} 9. Bxf6 {[%clk 0:02:52.1]} 9... gxf6 {[%clk 0:02:55]}
10. O-O-O {[%clk 0:02:52.2]} 10... Rc8 {[%clk 0:02:51.9]} 11. Kb1 {[%clk
0:02:51.5]} 11... h5 {[%clk 0:02:51.2]} 12. f4 {[%clk 0:02:48.7]} 12... h4
{[%clk 0:02:50.6]} 13. Be2 {[%clk 0:02:41]} 13... Qc5 {[%clk 0:02:47.1]} 14. Qd3
{[%clk 0:02:36.3]} 14... Bg7 {[%clk 0:02:43.6]} 15. f5 {[%clk 0:02:25.8]} 15...
Bh6 {[%clk 0:02:33.1]} 16. Nd5 {[%clk 0:02:22.6]} 16... a6 {[%clk 0:02:15.4]}
17. c4 {[%clk 0:02:17.7]} 17... Bg5 {[%clk 0:02:09.2]} 18. g3 {[%clk 0:02:06.9]}
18... b5 {[%clk 0:02:02.8]} 19. gxh4 {[%clk 0:01:43.9]} 19... Rxh4 {[%clk
0:02:01.7]} 20. Rc1 {[%clk 0:01:02.2]} 20... Bxc1 {[%clk 0:01:44.9]} 21. Rxc1
{[%clk 0:01:03.1]} 21... Qf2 {[%clk 0:01:35.2]} 22. a3 {[%clk 0:00:47.4]} 22...
Rxe4 {[%clk 0:01:22.9]} 23. Nxf6+ {[%clk 0:00:24.7]} 23... exf6 {[%clk
0:01:19.8]} 24. Qxe4+ {[%clk 0:00:24.6]} 24... Kf8 {[%clk 0:01:17.7]} 25. Bd3
{[%clk 0:00:23.5]} 25... bxc4 {[%clk 0:01:08.6]} 26. Rxc4 {[%clk 0:00:22.9]}
26... Rxc4 {[%clk 0:00:56.1]} 27. Qxc4 {[%clk 0:00:23.8]} 27... Bxf5 {[%clk
0:00:47.4]} 28. Qxa6 {[%clk 0:00:23.7]} 28... Qf1+ {[%clk 0:00:37.9]} 29. Kc2
{[%clk 0:00:23.8]} 29... Qe2+ {[%clk 0:00:37]} 30. Kc3 {[%clk 0:00:22.8]} 30...
Qe5+ {[%clk 0:00:37.1]} 31. Kc2 {[%clk 0:00:22.5]} 31... Qxh2+ {[%clk
0:00:36.9]} 32. Kc3 {[%clk 0:00:22.6]} 32... Qe5+ {[%clk 0:00:36.5]} 33. Kc2
{[%clk 0:00:22.9]} 33... Qc5+ {[%clk 0:00:29.9]} 34. Kd2 {[%clk 0:00:23]} 34...
Be6 {[%clk 0:00:27]} 35. b4 {[%clk 0:00:20.6]} 35... Qf2+ {[%clk 0:00:25.9]} 36.
Kc3 {[%clk 0:00:20.7]} 36... f5 {[%clk 0:00:22.6]} 37. Qxd6+ {[%clk 0:00:20.6]}
37... Kg7 {[%clk 0:00:21.3]} 38. Qd4+ {[%clk 0:00:20.6]} 38... Qxd4+ {[%clk
0:00:21]} 39. Kxd4 {[%clk 0:00:21.5]} 39... Kf6 {[%clk 0:00:20.8]} 40. a4 {[%clk
0:00:21.8]} 40... Kg5 {[%clk 0:00:20]} 41. a5 {[%clk 0:00:22.2]} 41... f4 {[%clk
0:00:18.3]} 42. a6 {[%clk 0:00:22.2]} 42... Bc8 {[%clk 0:00:18.2]} 43. b5 {[%clk
0:00:21.4]} 43... f3 {[%clk 0:00:17.3]} 44. Ke3 {[%clk 0:00:21.4]} 44... Kg4
{[%clk 0:00:17.6]} 45. Be4 {[%clk 0:00:17.4]} 45... f5 {[%clk 0:00:12.5]} 46.
Bxf3+ {[%clk 0:00:17.6]} 46... Kg3 {[%clk 0:00:13.1]} 47. a7 {[%clk 0:00:17.7]}
47... f4+ {[%clk 0:00:13.7]} 48. Ke2 {[%clk 0:00:17.9]} 1-0

[Event "*** Titled Tuesday Blitz"]
[Site "Chess.com"]
[Date "2020.11.03"]
[Round "10"]
[White "Bastiandash"]
[Black "chessmadara"]
[Result "1-0"]
[WhiteElo "2344"]
[BlackElo "2217"]
[TimeControl "180+1"]
[EndTime "11:59:59 PST"]
[Termination "Bastiandash won by resignation"]

1. e4 {[%clk 0:03:00.9]} 1... c5 {[%clk 0:02:58.3]} 2. Nf3 {[%clk 0:03:00.3]}
2... Nc6 {[%clk 0:02:57.8]} 3. c3 {[%clk 0:02:58.6]} 3... Nf6 {[%clk 0:02:56.5]}
4. e5 {[%clk 0:02:58.5]} 4... Nd5 {[%clk 0:02:56.2]} 5. g3 {[%clk 0:02:59]} 5...
g6 {[%clk 0:02:55.5]} 6. Bg2 {[%clk 0:02:58.1]} 6... Bg7 {[%clk 0:02:56]} 7. d4
{[%clk 0:02:57.3]} 7... cxd4 {[%clk 0:02:55.5]} 8. cxd4 {[%clk 0:02:58.2]} 8...
O-O {[%clk 0:02:54.5]} 9. O-O {[%clk 0:02:57.9]} 9... d6 {[%clk 0:02:54.6]} 10.
exd6 {[%clk 0:02:57.7]} 10... Qxd6 {[%clk 0:02:54.1]} 11. Nc3 {[%clk 0:02:58.4]}
11... Nb6 {[%clk 0:02:50.8]} 12. Bf4 {[%clk 0:02:56.9]} 12... Qd8 {[%clk
0:02:48.5]} 13. Qe2 {[%clk 0:02:33.2]} 13... Nxd4 {[%clk 0:02:46.7]} 14. Nxd4
{[%clk 0:02:34.1]} 14... Bxd4 {[%clk 0:02:32.4]} 15. Rfd1 {[%clk 0:02:33.5]}
15... h5 {[%clk 0:01:33.6]} 16. Be5 {[%clk 0:02:28.9]} 16... Bg4 {[%clk
0:01:32.5]} 17. Rxd4 {[%clk 0:01:43.3]} 17... Qxd4 {[%clk 0:01:20.8]} 18. Bxd4
{[%clk 0:01:32.4]} 18... Bxe2 {[%clk 0:01:20.2]} 19. Nxe2 {[%clk 0:01:33.3]}
19... Rac8 {[%clk 0:01:16.2]} 20. Bc3 {[%clk 0:01:32.3]} 20... Na4 {[%clk
0:01:13.9]} 21. Bxb7 {[%clk 0:01:16.5]} 21... Nxc3 {[%clk 0:01:13.5]} 22. bxc3
{[%clk 0:01:03.2]} 22... Rc7 {[%clk 0:01:13.5]} 23. Bd5 {[%clk 0:01:01.7]} 23...
Rd8 {[%clk 0:01:13.2]} 24. Bb3 {[%clk 0:01:00.9]} 24... Rd2 {[%clk 0:01:11.9]}
25. Re1 {[%clk 0:00:59]} 25... e5 {[%clk 0:01:07.4]} 26. c4 {[%clk 0:00:29.3]}
26... f5 {[%clk 0:00:40.5]} 27. Nc3 {[%clk 0:00:28.7]} 27... e4 {[%clk
0:00:40.7]} 28. Nd5 {[%clk 0:00:28.1]} 28... Rc5 {[%clk 0:00:37.1]} 29. Nf4
{[%clk 0:00:20.2]} 29... Kf7 {[%clk 0:00:36.1]} 30. Nd5 {[%clk 0:00:17.6]} 30...
Kg7 {[%clk 0:00:32.5]} 31. Nc3 {[%clk 0:00:17.8]} 31... a5 {[%clk 0:00:30.8]}
32. Na4 {[%clk 0:00:18.4]} 32... Rc7 {[%clk 0:00:29.1]} 33. c5 {[%clk
0:00:18.7]} 33... Rd4 {[%clk 0:00:27.7]} 34. Rc1 {[%clk 0:00:17.9]} 34... g5
{[%clk 0:00:25.1]} 35. Nb6 {[%clk 0:00:16.8]} 35... f4 {[%clk 0:00:14.1]} 36.
gxf4 {[%clk 0:00:17.3]} 36... gxf4 {[%clk 0:00:14.2]} 37. Nd5 {[%clk 0:00:18.2]}
37... Rf7 {[%clk 0:00:06.8]} 38. c6 {[%clk 0:00:17]} 38... e3 {[%clk 0:00:04.4]}
39. fxe3 {[%clk 0:00:16.1]} 39... fxe3 {[%clk 0:00:04.3]} 40. Nxe3 {[%clk
0:00:17]} 40... Rc7 {[%clk 0:00:03.4]} 41. Nd5 {[%clk 0:00:16.8]} 41... Rc8
{[%clk 0:00:03]} 42. c7 {[%clk 0:00:17.2]} 42... Rd2 {[%clk 0:00:02.4]} 43. Nb6
{[%clk 0:00:16.3]} 43... Rxc7 {[%clk 0:00:01.8]} 44. Rxc7+ {[%clk 0:00:17.2]}
1-0

[Event "*** Titled Tuesday Blitz"]
[Site "Chess.com"]
[Date "2020.11.03"]
[Round "10"]
[White "Guenplen"]
[Black "Nikolakis2014"]
[Result "1-0"]
[WhiteElo "2898"]
[BlackElo "2763"]
[TimeControl "180+1"]
[EndTime "12:00:00 PST"]
[Termination "Guenplen won by resignation"]

1. d4 {[%clk 0:03:00.9]} 1... Nf6 {[%clk 0:02:58.4]} 2. Bf4 {[%clk 0:03:01]}
2... e6 {[%clk 0:02:53.7]} 3. e3 {[%clk 0:03:01.1]} 3... d5 {[%clk 0:02:49.3]}
4. Nd2 {[%clk 0:03:00.6]} 4... Bd6 {[%clk 0:02:49.4]} 5. Bg3 {[%clk 0:03:00.6]}
5... O-O {[%clk 0:02:49.4]} 6. Ngf3 {[%clk 0:03:00.7]} 6... c5 {[%clk
0:02:49.4]} 7. c3 {[%clk 0:03:00.7]} 7... Qc7 {[%clk 0:02:49.5]} 8. dxc5 {[%clk
0:03:00]} 8... Qxc5 {[%clk 0:02:48.3]} 9. Rc1 {[%clk 0:02:54.9]} 9... Bxg3
{[%clk 0:02:41.5]} 10. hxg3 {[%clk 0:02:54.6]} 10... Nc6 {[%clk 0:02:41.6]} 11.
b4 {[%clk 0:02:49.7]} 11... Qe7 {[%clk 0:02:39.3]} 12. Bd3 {[%clk 0:02:45.5]}
12... e5 {[%clk 0:02:32.4]} 13. e4 {[%clk 0:02:43.8]} 13... d4 {[%clk
0:02:19.8]} 14. cxd4 {[%clk 0:02:18.4]} 14... exd4 {[%clk 0:02:11.9]} 15. b5
{[%clk 0:02:08]} 15... Nb4 {[%clk 0:02:06.9]} 16. Bb1 {[%clk 0:02:01.2]} 16...
d3 {[%clk 0:01:16.8]} 17. e5 {[%clk 0:01:46.6]} 17... Ng4 {[%clk 0:01:09.5]} 18.
a3 {[%clk 0:01:17.7]} 18... Nxe5 {[%clk 0:01:00.7]} 19. O-O {[%clk 0:01:16.7]}
19... Nc2 {[%clk 0:00:53.8]} 20. Bxc2 {[%clk 0:01:11.3]} 20... dxc2 {[%clk
0:00:53.9]} 21. Qxc2 {[%clk 0:01:12.2]} 21... Nxf3+ {[%clk 0:00:51]} 22. Nxf3
{[%clk 0:01:12.8]} 22... Qxa3 {[%clk 0:00:38.7]} 23. Ng5 {[%clk 0:01:12.8]}
23... g6 {[%clk 0:00:38.8]} 24. Qe4 {[%clk 0:01:02.6]} 24... a5 {[%clk
0:00:32.1]} 25. Qh4 {[%clk 0:00:54.6]} 25... h5 {[%clk 0:00:31.3]} 26. Ne4
{[%clk 0:00:54.8]} 26... Bf5 {[%clk 0:00:29.3]} 27. Nf6+ {[%clk 0:00:51.9]}
27... Kg7 {[%clk 0:00:27.3]} 28. Qg5 {[%clk 0:00:52.1]} 28... Rh8 {[%clk
0:00:27]} 29. Nd5 {[%clk 0:00:30.5]} 29... Qd6 {[%clk 0:00:25.6]} 30. Rfd1
{[%clk 0:00:29.5]} 30... Rad8 {[%clk 0:00:23.6]} 31. Ne3 {[%clk 0:00:16.9]}
31... Bd3 {[%clk 0:00:21.1]} 32. Rc3 {[%clk 0:00:11.5]} 32... f6 {[%clk
0:00:20.1]} 33. Qh4 {[%clk 0:00:09.9]} 33... g5 {[%clk 0:00:16.6]} 34. Qh3
{[%clk 0:00:07.8]} 34... Qb4 {[%clk 0:00:12.1]} 35. Rcxd3 {[%clk 0:00:06.9]}
35... Rxd3 {[%clk 0:00:11.7]} 36. Rxd3 {[%clk 0:00:07.8]} 36... Qxb5 {[%clk
0:00:12]} 37. Qd7+ {[%clk 0:00:07.2]} 37... Qxd7 {[%clk 0:00:11.1]} 38. Rxd7+
{[%clk 0:00:08.1]} 38... Kg6 {[%clk 0:00:11.4]} 39. Rxb7 {[%clk 0:00:08.9]}
39... Ra8 {[%clk 0:00:11.6]} 40. Rb3 {[%clk 0:00:08.9]} 40... a4 {[%clk
0:00:12.1]} 41. Ra3 {[%clk 0:00:09.3]} 41... Kf7 {[%clk 0:00:12.1]} 42. Nd5
{[%clk 0:00:09.4]} 42... Ra5 {[%clk 0:00:10.5]} 43. Nc3 {[%clk 0:00:09]} 43...
Ke6 {[%clk 0:00:10.3]} 44. Rxa4 {[%clk 0:00:08.8]} 44... Rc5 {[%clk 0:00:10.5]}
45. Re4+ {[%clk 0:00:08.2]} 1-0

[Event "*** Titled Tuesday Blitz"]
[Site "Chess.com"]
[Date "2020.11.03"]
[Round "10"]
[White "Iskusnyh"]
[Black "yobdc"]
[Result "0-1"]
[WhiteElo "2563"]
[BlackElo "2394"]
[TimeControl "180+1"]
[EndTime "12:00:00 PST"]
[Termination "yobdc won by checkmate"]

1. d4 {[%clk 0:03:00.9]} 1... d5 {[%clk 0:02:59.5]} 2. c4 {[%clk 0:03:00.7]}
2... e6 {[%clk 0:02:59.5]} 3. Nf3 {[%clk 0:03:00.4]} 3... Nf6 {[%clk 0:02:59.4]}
4. g3 {[%clk 0:03:00.3]} 4... Bb4+ {[%clk 0:02:58]} 5. Bd2 {[%clk 0:02:58.7]}
5... Bxd2+ {[%clk 0:02:58.2]} 6. Nbxd2 {[%clk 0:02:57.1]} 6... O-O {[%clk
0:02:58.2]} 7. Bg2 {[%clk 0:02:56.8]} 7... Qe7 {[%clk 0:02:58.6]} 8. O-O {[%clk
0:02:55.6]} 8... Rd8 {[%clk 0:02:58.7]} 9. Qc2 {[%clk 0:02:54.9]} 9... Nc6
{[%clk 0:02:58.7]} 10. cxd5 {[%clk 0:02:50.2]} 10... exd5 {[%clk 0:02:58.6]} 11.
e3 {[%clk 0:02:49.1]} 11... Bg4 {[%clk 0:02:55.7]} 12. a3 {[%clk 0:02:47.1]}
12... Rd6 {[%clk 0:02:55.4]} 13. Rac1 {[%clk 0:02:44.6]} 13... Re8 {[%clk
0:02:54.7]} 14. b4 {[%clk 0:02:29.5]} 14... a6 {[%clk 0:02:54.9]} 15. Nb3 {[%clk
0:02:27.6]} 15... Ne4 {[%clk 0:02:54.1]} 16. Nc5 {[%clk 0:02:26.5]} 16... Rf6
{[%clk 0:02:41.1]} 17. Ne5 {[%clk 0:02:01.1]} 17... Nxe5 {[%clk 0:02:32]} 18.
dxe5 {[%clk 0:01:50.4]} 18... Qxe5 {[%clk 0:02:31.3]} 19. Nxe4 {[%clk
0:01:27.7]} 19... dxe4 {[%clk 0:02:30.9]} 20. Qxc7 {[%clk 0:01:28.2]} 20... h5
{[%clk 0:01:43.1]} 21. Qxb7 {[%clk 0:01:14.7]} 21... h4 {[%clk 0:01:42.2]} 22.
Rc5 {[%clk 0:01:13.1]} 22... Qe6 {[%clk 0:01:39.5]} 23. Qd5 {[%clk 0:01:04.8]}
23... h3 {[%clk 0:01:32.7]} 24. Qxe6 {[%clk 0:01:01.4]} 24... Rfxe6 {[%clk
0:01:31]} 25. Bh1 {[%clk 0:01:01]} 25... Rd8 {[%clk 0:01:28.3]} 26. a4 {[%clk
0:00:41.8]} 26... Rd2 {[%clk 0:01:23.4]} 27. b5 {[%clk 0:00:40.2]} 27... axb5
{[%clk 0:01:22.9]} 28. axb5 {[%clk 0:00:39.7]} 28... f5 {[%clk 0:01:13]} 29. Rb1
{[%clk 0:00:36.8]} 29... Rb6 {[%clk 0:01:04.8]} 30. Re5 {[%clk 0:00:23.7]} 30...
Rbd6 {[%clk 0:00:56.6]} 31. Re1 {[%clk 0:00:18.9]} 31... Re2 {[%clk 0:00:53.3]}
32. Rf1 {[%clk 0:00:17.9]} 32... Rb2 {[%clk 0:00:51.9]} 33. Rc5 {[%clk 0:00:16]}
33... Rdd2 {[%clk 0:00:41.2]} 34. Re5 {[%clk 0:00:16]} 34... Kh7 {[%clk
0:00:41]} 35. Rc5 {[%clk 0:00:15.2]} 35... Kh6 {[%clk 0:00:40.8]} 36. Rc6+
{[%clk 0:00:15]} 36... g6 {[%clk 0:00:40.9]} 37. Rc5 {[%clk 0:00:14.1]} 37...
Be2 {[%clk 0:00:37.8]} 38. Rfc1 {[%clk 0:00:13.8]} 38... Bxb5 {[%clk 0:00:33.2]}
39. Rc8 {[%clk 0:00:12.5]} 39... Rxf2 {[%clk 0:00:30.7]} 40. Rh8+ {[%clk
0:00:11]} 40... Kg5 {[%clk 0:00:28.9]} 41. Rxh3 {[%clk 0:00:10.9]} 41... Rfe2
{[%clk 0:00:21.7]} 42. Bxe4 {[%clk 0:00:10.4]} 42... fxe4 {[%clk 0:00:20]} 43.
Rc5+ {[%clk 0:00:10.4]} 43... Kg4 {[%clk 0:00:18.2]} 44. Rh4+ {[%clk 0:00:10.1]}
44... Kf3 {[%clk 0:00:18.5]} 45. Rf4+ {[%clk 0:00:10.1]} 45... Kxe3 {[%clk
0:00:18.9]} 46. Rc3+ {[%clk 0:00:10.1]} 46... Kd4 {[%clk 0:00:17.7]} 47. Rc1
{[%clk 0:00:09.7]} 47... Rg2+ {[%clk 0:00:17.6]} 48. Kh1 {[%clk 0:00:10.4]}
48... Rxh2+ {[%clk 0:00:18.1]} 49. Kg1 {[%clk 0:00:10.7]} 49... Rbg2# {[%clk
0:00:18.4]} 0-1

[Event "*** Titled Tuesday Blitz"]
[Site "Chess.com"]
[Date "2020.11.03"]
[Round "10"]
[White "jefferyx"]
[Black "Zhigalko_Sergei"]
[Result "1-0"]
[WhiteElo "2953"]
[BlackElo "2920"]
[TimeControl "180+1"]
[EndTime "12:00:01 PST"]
[Termination "jefferyx won by resignation"]

1. d4 {[%clk 0:03:00.9]} 1... Nf6 {[%clk 0:02:59.4]} 2. c4 {[%clk 0:03:01.6]}
2... e6 {[%clk 0:02:59.3]} 3. Nc3 {[%clk 0:03:02.2]} 3... Bb4 {[%clk 0:02:59.6]}
4. Qc2 {[%clk 0:03:02.4]} 4... O-O {[%clk 0:02:59.8]} 5. e4 {[%clk 0:02:56.7]}
5... d5 {[%clk 0:02:59.6]} 6. e5 {[%clk 0:02:57.3]} 6... Ne4 {[%clk 0:02:59.8]}
7. Bd3 {[%clk 0:02:58]} 7... c5 {[%clk 0:02:59.4]} 8. Nf3 {[%clk 0:02:58.7]}
8... cxd4 {[%clk 0:03:00]} 9. Nxd4 {[%clk 0:02:59.6]} 9... Nd7 {[%clk
0:03:00.5]} 10. Bf4 {[%clk 0:03:00.2]} 10... Ndc5 {[%clk 0:03:01]} 11. O-O
{[%clk 0:02:57]} 11... Bxc3 {[%clk 0:03:01.4]} 12. bxc3 {[%clk 0:02:57.9]} 12...
Bd7 {[%clk 0:03:01.9]} 13. cxd5 {[%clk 0:02:58.5]} 13... Ba4 {[%clk 0:03:02.1]}
14. Nb3 {[%clk 0:02:23.4]} 14... Qxd5 {[%clk 0:02:43.8]} 15. Rad1 {[%clk
0:02:16.5]} 15... Rfd8 {[%clk 0:02:04.4]} 16. c4 {[%clk 0:02:03.1]} 16... Qc6
{[%clk 0:01:59.7]} 17. Be2 {[%clk 0:02:01.9]} 17... Rxd1 {[%clk 0:01:18.5]} 18.
Rxd1 {[%clk 0:02:01.7]} 18... Qb6 {[%clk 0:01:19.1]} 19. Be3 {[%clk 0:01:52.5]}
19... Bxb3 {[%clk 0:01:17.1]} 20. axb3 {[%clk 0:01:53.4]} 20... Qxb3 {[%clk
0:01:17.8]} 21. Rc1 {[%clk 0:01:10.1]} 21... a5 {[%clk 0:00:56.8]} 22. Bf3
{[%clk 0:01:01.8]} 22... Qxc2 {[%clk 0:00:50.4]} 23. Rxc2 {[%clk 0:01:02.7]}
23... a4 {[%clk 0:00:51.2]} 24. Bxe4 {[%clk 0:00:50.6]} 24... Nxe4 {[%clk
0:00:47.2]} 25. f3 {[%clk 0:00:51.1]} 25... a3 {[%clk 0:00:39.7]} 26. fxe4
{[%clk 0:00:52]} 26... a2 {[%clk 0:00:40.2]} 27. Bd4 {[%clk 0:00:52.6]} 27...
a1=Q+ {[%clk 0:00:37]} 28. Bxa1 {[%clk 0:00:53.3]} 28... Rxa1+ {[%clk
0:00:37.3]} 29. Kf2 {[%clk 0:00:54.2]} 29... g5 {[%clk 0:00:20.6]} 30. Ke3
{[%clk 0:00:52.6]} 30... Rb1 {[%clk 0:00:20.4]} 31. Kd4 {[%clk 0:00:41.2]} 31...
h5 {[%clk 0:00:15.2]} 32. Kc5 {[%clk 0:00:40]} 32... Kg7 {[%clk 0:00:09.5]} 33.
Kd6 {[%clk 0:00:39.9]} 33... h4 {[%clk 0:00:07]} 34. c5 {[%clk 0:00:39.7]} 34...
Kg6 {[%clk 0:00:05.7]} 35. Rf2 {[%clk 0:00:33.1]} 35... Rb4 {[%clk 0:00:04.5]}
36. Rf6+ {[%clk 0:00:29.2]} 36... Kh5 {[%clk 0:00:03.4]} 37. Rxf7 {[%clk
0:00:29.1]} 37... Rxe4 {[%clk 0:00:03.8]} 38. Rxb7 {[%clk 0:00:28.9]} 38... Re2
{[%clk 0:00:04]} 39. c6 {[%clk 0:00:27.5]} 39... Rxg2 {[%clk 0:00:04.2]} 40. c7
{[%clk 0:00:28]} 40... Rd2+ {[%clk 0:00:04.3]} 41. Kxe6 {[%clk 0:00:28]} 41...
Rc2 {[%clk 0:00:03.4]} 42. Kd7 {[%clk 0:00:28]} 42... Rd2+ {[%clk 0:00:03.2]}
43. Ke7 {[%clk 0:00:20.7]} 43... Rc2 {[%clk 0:00:03.4]} 44. Kd8 {[%clk
0:00:21.3]} 44... Rd2+ {[%clk 0:00:03.3]} 45. Kc8 {[%clk 0:00:22]} 45... Rc2
{[%clk 0:00:04.2]} 46. Kb8 {[%clk 0:00:22.4]} 46... g4 {[%clk 0:00:04.1]} 47.
c8=Q {[%clk 0:00:21.2]} 47... Rxc8+ {[%clk 0:00:04.1]} 48. Kxc8 {[%clk
0:00:22.1]} 48... g3 {[%clk 0:00:04.8]} 49. hxg3 {[%clk 0:00:21]} 49... hxg3
{[%clk 0:00:05.7]} 50. Rg7 {[%clk 0:00:21.1]} 50... g2 {[%clk 0:00:06.2]} 51.
Rxg2 {[%clk 0:00:20.9]} 1-0

[Event "*** Titled Tuesday Blitz"]
[Site "Chess.com"]
[Date "2020.11.03"]
[Round "10"]
[White "Godzillator"]
[Black "Skat2704"]
[Result "0-1"]
[WhiteElo "2327"]
[BlackElo "2452"]
[TimeControl "180+1"]
[EndTime "12:00:01 PST"]
[Termination "Skat2704 won on time"]

1. d4 {[%clk 0:03:00.9]} 1... d5 {[%clk 0:02:59.3]} 2. c4 {[%clk 0:03:01]} 2...
e6 {[%clk 0:02:59.3]} 3. cxd5 {[%clk 0:03:01.2]} 3... exd5 {[%clk 0:02:59.2]} 4.
Nc3 {[%clk 0:03:01.9]} 4... Nf6 {[%clk 0:02:59.1]} 5. Bg5 {[%clk 0:03:02]} 5...
Be7 {[%clk 0:02:59.4]} 6. e3 {[%clk 0:03:02.4]} 6... h6 {[%clk 0:02:59.7]} 7.
Bh4 {[%clk 0:03:01.9]} 7... O-O {[%clk 0:02:59.8]} 8. Bd3 {[%clk 0:03:01.1]}
8... b6 {[%clk 0:03:00.2]} 9. Qc2 {[%clk 0:03:00.5]} 9... Bb7 {[%clk 0:02:59.8]}
10. Nf3 {[%clk 0:03:00.2]} 10... Na6 {[%clk 0:02:59.7]} 11. a3 {[%clk
0:02:59.5]} 11... c5 {[%clk 0:02:59.9]} 12. O-O {[%clk 0:02:58.9]} 12... Nc7
{[%clk 0:03:00.1]} 13. Rfd1 {[%clk 0:02:55.6]} 13... Ne6 {[%clk 0:02:59.5]} 14.
dxc5 {[%clk 0:02:53.6]} 14... bxc5 {[%clk 0:02:58.9]} 15. Bf5 {[%clk 0:02:50.7]}
15... d4 {[%clk 0:02:38.9]} 16. Bxe6 {[%clk 0:02:41.6]} 16... fxe6 {[%clk
0:02:37.5]} 17. exd4 {[%clk 0:02:32.6]} 17... Bxf3 {[%clk 0:02:33.4]} 18. gxf3
{[%clk 0:02:29.2]} 18... cxd4 {[%clk 0:02:32.7]} 19. Ne2 {[%clk 0:02:24.8]}
19... Nd5 {[%clk 0:02:26.6]} 20. Bxe7 {[%clk 0:02:20.8]} 20... Qxe7 {[%clk
0:02:26.6]} 21. Nxd4 {[%clk 0:02:20.5]} 21... Nf4 {[%clk 0:02:21]} 22. Kh1
{[%clk 0:02:09.1]} 22... e5 {[%clk 0:01:58.6]} 23. Nc6 {[%clk 0:01:56.2]} 23...
Qh4 {[%clk 0:01:35.7]} 24. Rg1 {[%clk 0:01:40.8]} 24... Qh3 {[%clk 0:00:53.9]}
25. Rg3 {[%clk 0:01:39.4]} 25... Qe6 {[%clk 0:00:49.9]} 26. Rag1 {[%clk
0:01:35.2]} 26... Rf7 {[%clk 0:00:46.7]} 27. Qe4 {[%clk 0:01:31.8]} 27... Re8
{[%clk 0:00:40.3]} 28. b4 {[%clk 0:01:21]} 28... Nh5 {[%clk 0:00:35.2]} 29. Rg6
{[%clk 0:01:16.1]} 29... Nf6 {[%clk 0:00:34.6]} 30. Qc2 {[%clk 0:01:05.3]} 30...
Qd5 {[%clk 0:00:31.6]} 31. R1g3 {[%clk 0:01:01.3]} 31... e4 {[%clk 0:00:23.2]}
32. Qc3 {[%clk 0:00:50.1]} 32... exf3 {[%clk 0:00:19.1]} 33. h3 {[%clk 0:00:38]}
33... Nh5 {[%clk 0:00:15]} 34. R3g4 {[%clk 0:00:22.8]} 34... Qd1+ {[%clk
0:00:13.9]} 35. Kh2 {[%clk 0:00:21.4]} 35... Qd7 {[%clk 0:00:13.4]} 36. b5
{[%clk 0:00:14.4]} 36... Qc7+ {[%clk 0:00:13.3]} 37. Kg1 {[%clk 0:00:13.3]}
37... Rd7 {[%clk 0:00:13.4]} 38. Qb3+ {[%clk 0:00:09.1]} 38... Kh8 {[%clk
0:00:11.8]} 39. Re6 {[%clk 0:00:07.5]} 39... Rxe6 {[%clk 0:00:11.2]} 40. Rxg7
{[%clk 0:00:02.8]} 40... Rd1+ {[%clk 0:00:10.6]} 41. Qxd1 {[%clk 0:00:02]} 41...
Qxg7+ {[%clk 0:00:09.2]} 0-1